fUSD/lending_fUSD_20240428
["ID","MTS","AMOUNT","RATE_DAILY","PERIOD"]
[34770,1714331470157,-500.0,0.00011506,2]
[34771,1714331470168,-393.97643461,0.00011506,2]
[34772,1714331470178,-500.0,0.00011506,2]
[34773,1714331470188,-500.0,0.00011506,2]
[34774,1714331470198,-500.0,0.00011506,2]
[34775,1714331470208,-807.65,0.00011506,2]
[34776,1714331470217,-561.86,0.00011506,2]
[34777,1714331470227,-721.68,0.00011506,2]
[34778,1714331470236,-500.0,0.00011506,2]
[34779,1714331470245,-500.0,0.00011506,2]
[34780,1714331470255,-500.0,0.00011506,2]
[34781,1714331470264,-500.0,0.00011506,2]
[34783,1714331470285,-500.0,0.00011506,2]
[34785,1714331470304,-500.0,0.00011506,2]
[34787,1714331470323,-607.06,0.00011506,2]
[34789,1714331470343,-500.0,0.00011506,2]
[34791,1714331470365,-500.0,0.00011506,2]
[34793,1714331470384,-500.0,0.00011506,2]
[34795,1714331470406,-500.0,0.00011506,2]
[34797,1714331470426,-559.54,0.00011506,2]
[34799,1714331470445,-500.0,0.00011506,2]
[34801,1714331470464,-588.44,0.00011506,2]
[34803,1714331470482,-505.49466685,0.00011506,2]
[34805,1714331470500,-500.0,0.00011506,2]
[34807,1714331470519,-500.0,0.00011506,2]
[34809,1714331470538,-500.0,0.00011506,2]
[34811,1714331470556,-500.0,0.00011506,2]
[34813,1714331470575,-500.0,0.00011506,2]
[34815,1714331470594,-573.36,0.00011506,2]
[34817,1714331470612,-500.0,0.00011506,2]
[34819,1714331470631,-606.71805572,0.00011506,2]
[34821,1714331470650,-596.12,0.00011506,2]
[34823,1714331470668,-700.29,0.00011506,2]
[34825,1714331470687,-500.0,0.00011506,2]
[34827,1714331470705,-500.0,0.00011506,2]
[34829,1714331470723,-500.0,0.00011506,2]
[34831,1714331470747,-500.0,0.00011506,2]
[34833,1714331470767,-150.0,0.00011506,2]
[34835,1714331470786,-500.0,0.00011506,2]
[34837,1714331470804,-465.5746664,0.00011506,2]
[34839,1714331470822,-601.85,0.00011506,2]
[34841,1714331470841,-500.0,0.00011506,2]
[34843,1714331470859,-500.0,0.00011506,2]
[34845,1714331470878,-500.0,0.00011506,2]
[34847,1714331470896,-500.0,0.00011506,2]
[34849,1714331470916,-520.06,0.00011506,2]
[34851,1714331470936,-500.0,0.00011506,2]
[34853,1714331470955,-500.0,0.00011506,2]
[34855,1714331470973,-500.0,0.00011506,2]
[34857,1714331470992,-500.0,0.00011506,2]
[34859,1714331471011,-500.0,0.00011506,2]
[34861,1714331471029,-801.75,0.00011506,2]
[34863,1714331471047,-500.0,0.00011506,2]
[34865,1714331471066,-906.44,0.00011506,2]
[34867,1714331471085,-565.22125933,0.00011506,2]
[34869,1714331471104,-500.0,0.00011506,2]
[34871,1714331471125,-500.0,0.00011506,2]
[34873,1714331471145,-511.71,0.00011506,2]
[34875,1714331471164,-500.0,0.00011506,2]
[34877,1714331471183,-500.0,0.00011506,2]
[34879,1714331471202,-500.0,0.00011506,2]
[34881,1714331471221,-500.0,0.00011506,2]
[34883,1714331471239,-536.2,0.00011506,2]
[34885,1714331471257,-504.48017633,0.00011506,2]
[34887,1714331471277,-500.0,0.00011506,2]
[34889,1714331471299,-717.54,0.00011506,2]
[34891,1714331471318,-500.0,0.00011506,2]
[34893,1714331471337,-500.0,0.00011506,2]
[34895,1714331471358,-500.0,0.00011506,2]
[34897,1714331471376,-500.0,0.00011506,2]
[34899,1714331471396,-500.0,0.00011506,2]
[34901,1714331471414,-500.0,0.00011506,2]
[34903,1714331471435,-500.0,0.00011506,2]
[34905,1714331471454,-500.0,0.00011506,2]
[34907,1714331471472,-500.0,0.00011506,2]
[34909,1714331471491,-500.0,0.00011506,2]
[34911,1714331471509,-996.75,0.00011506,2]
[34913,1714331471529,-500.0,0.00011506,2]
[34915,1714331471547,-595.66,0.00011506,2]
[34917,1714331471566,-500.0,0.00011506,2]
[34919,1714331471585,-500.0,0.00011506,2]
[34921,1714331471604,-500.0,0.00011506,2]
[34923,1714331471623,-500.0,0.00011506,2]
[34925,1714331471642,-538.0,0.00011506,2]
[34927,1714331471660,-500.0,0.00011506,2]
[34929,1714331471679,-500.0,0.00011506,2]
[34931,1714331471699,-500.0,0.00011506,2]
[34933,1714331471718,-500.0,0.00011506,2]
[34935,1714331471738,-500.0,0.00011506,2]
[34937,1714331471756,-383.63,0.00011506,2]
[34939,1714331471776,-500.0,0.00011506,2]
[34941,1714331471794,-500.0,0.00011506,2]
[34943,1714331471814,-500.0,0.00011506,2]
[34945,1714331471833,-500.0,0.00011506,2]
[34947,1714331471852,-500.0,0.00011506,2]
[34949,1714331471871,-1772.83,0.00011506,2]
[34951,1714331471889,-532.51,0.00011506,2]
[34953,1714331471908,-229.67,0.00011506,2]
[34955,1714331471926,-598.01,0.00011506,2]
[34957,1714331471944,-500.0,0.00011506,2]
[34959,1714331471964,-625.85,0.00011506,2]
[34961,1714331471982,-500.0,0.00011506,2]
[34963,1714331472001,-805.9,0.00011506,2]
[34965,1714331472020,-500.0,0.00011506,2]
[34967,1714331472038,-1026.14,0.00011506,2]
[34969,1714331472056,-500.0,0.00011506,2]
[34971,1714331472075,-500.0,0.00011506,2]
[34973,1714331472092,-500.0,0.00011506,2]
[34975,1714331472111,-500.0,0.00011506,2]
[34977,1714331472130,-500.0,0.00011506,2]
[34979,1714331472148,-772.53,0.00011506,2]
[34981,1714331472167,-622.52,0.00011506,2]
[34983,1714331472185,-500.0,0.00011506,2]
[34985,1714331472203,-500.0,0.00011506,2]
[34987,1714331472222,-979.15,0.00011506,2]
[34989,1714331472241,-2683.52,0.00011506,2]
[34991,1714331472260,-500.0,0.00011506,2]
[34993,1714331472280,-513.23,0.00011506,2]
[34995,1714331472299,-500.0,0.00011506,2]
[34997,1714331472317,-1071.68,0.00011506,2]
[34999,1714331472336,-1126.91,0.00011506,2]
[35001,1714331472360,-500.0,0.00011506,2]
[35003,1714331472378,-768.45,0.00011506,2]
[35005,1714331472399,-500.0,0.00011506,2]
[35007,1714331472419,-500.0,0.00011506,2]
[35009,1714331472439,-500.0,0.00011506,2]
[35011,1714331472457,-500.0,0.00011506,2]
[35013,1714331472475,-500.0,0.00011506,2]
[35015,1714331472493,-560.22,0.00011506,2]
[35017,1714331472513,-500.0,0.00011506,2]
[35019,1714331472533,-500.0,0.00011506,2]
[35021,1714331472551,-422.41255782,0.00011506,2]
[35023,1714331472571,-3328.96,0.00011506,2]
[35025,1714331472589,-726.91,0.00011506,2]
[35027,1714331472607,-500.0,0.00011506,2]
[35029,1714331472626,-500.0,0.00011506,2]
[35031,1714331472644,-500.0,0.00011506,2]
[35033,1714331472663,-500.0,0.00011506,2]
[35035,1714331472681,-500.0,0.00011506,2]
[35037,1714331472699,-555.89,0.00011506,2]
[35039,1714331472717,-555.53,0.00011506,2]
[35041,1714331472736,-500.0,0.00011506,2]
[35043,1714331472754,-500.0,0.00011506,2]
[35045,1714331472773,-500.0,0.00011506,2]
[35047,1714331472792,-2951.91,0.00011506,2]
[35049,1714331472810,-500.0,0.00011506,2]
[35051,1714331472829,-500.0,0.00011506,2]
[35053,1714331472849,-500.0,0.00011506,2]
[35055,1714331472867,-500.0,0.00011506,2]
[35057,1714331472886,-500.0,0.00011506,2]
[35059,1714331472906,-1573.76,0.00011506,2]
[35061,1714331472926,-782.34,0.00011506,2]
[35063,1714331472945,-500.0,0.00011506,2]
[35065,1714331472964,-8529.27,0.00011506,2]
[35067,1714331472983,-500.0,0.00011506,2]
[35069,1714331473002,-500.0,0.00011506,2]
[35071,1714331473022,-500.0,0.00011506,2]
[35073,1714331473188,-500.0,0.00011506,2]
[35075,1714331473207,-925.51,0.00011506,2]
[35077,1714331473226,-850.01,0.00011506,2]
[35079,1714331473244,-2107.3,0.00011506,2]
[35081,1714331473262,-500.0,0.00011506,2]
[35083,1714331473281,-500.0,0.00011506,2]
[35085,1714331473299,-500.0,0.00011506,2]
[35087,1714331473317,-1434.31,0.00011506,2]
[35089,1714331473336,-823.49,0.00011506,2]
[35091,1714331473358,-500.0,0.00011506,2]
[35093,1714331473376,-500.0,0.00011506,2]
[35095,1714331473395,-1145.96,0.00011506,2]
[35097,1714331473413,-369.74006803,0.00011506,2]
[35099,1714331473435,-4341.09,0.00011506,2]
[35101,1714331473453,-2859.93,0.00011506,2]
[35103,1714331473472,-500.0,0.00011506,2]
[35105,1714331473490,-500.0,0.00011506,2]
[35107,1714331473509,-500.0,0.00011506,2]
[35108,1714331473519,-632.02,0.00011506,2]
[35109,1714331473529,-500.0,0.00011506,2]
[35110,1714331473539,-1251.88,0.00011506,2]
[35111,1714331473549,-982.93,0.00011506,2]
[35112,1714331473558,-1301.64,0.00011506,2]
[35113,1714331473567,-500.0,0.00011506,2]
[35114,1714331473577,-1459.2,0.00011506,2]
[35115,1714331473586,-558.43,0.00011506,2]
[35117,1714331473605,-559.47,0.00011506,2]
[35119,1714331473624,-500.0,0.00011506,2]
[35121,1714331473642,-500.0,0.00011506,2]
[35123,1714331473661,-760.17,0.00011506,2]
[35125,1714331473679,-500.0,0.00011506,2]
[35127,1714331473697,-2951.22,0.00011506,2]
[35129,1714331473715,-586.66,0.00011506,2]
[35131,1714331473734,-1319.84,0.00011506,2]
[35133,1714331473752,-500.0,0.00011506,2]
[35135,1714331473771,-532.65,0.00011506,2]
[35137,1714331473789,-625.97,0.00011506,2]
[35139,1714331473808,-5810.04,0.00011506,2]
[35141,1714331473827,-1243.71,0.00011506,2]
[35142,1714331473837,-500.0,0.00011506,2]
[35143,1714331473846,-500.0,0.00011506,2]
[35145,1714331473865,-11529.36,0.00011506,2]
[35147,1714331473884,-2615.87,0.00011506,2]
[35149,1714331473904,-956.53,0.00011506,2]
[35151,1714331473924,-500.0,0.00011506,2]
[35153,1714331473943,-694.2,0.00011506,2]
[35155,1714331473963,-613.08,0.00011506,2]
[35157,1714331473983,-1550.17,0.00011506,2]
[35158,1714331473992,-500.0,0.00011506,2]
[35159,1714331474001,-500.0,0.00011506,2]
[35160,1714331474011,-1112.97,0.00011506,2]
[35161,1714331474020,-565.24,0.00011506,2]
[35163,1714331474039,-1711.83,0.00011506,2]
[35165,1714331474058,-500.0,0.00011506,2]
[35167,1714331474076,-500.0,0.00011506,2]
[35168,1714331474086,-600.34,0.00011506,2]
[35169,1714331474095,-1062.05,0.00011506,2]
[35170,1714331474104,-995.48,0.00011506,2]
[35171,1714331474114,-500.0,0.00011506,2]
[35172,1714331474123,-500.0,0.00011506,2]
[35173,1714331474133,-500.0,0.00011506,2]
[35174,1714331474142,-938.89,0.00011506,2]
[35175,1714331474151,-829.71,0.00011506,2]
[35176,1714331474160,-500.0,0.00011506,2]
[35177,1714331474170,-579.0,0.00011506,2]
[35178,1714331474179,-500.0,0.00011506,2]
[35179,1714331474189,-500.0,0.00011506,2]
[35180,1714331474198,-500.0,0.00011506,2]
[35181,1714331474207,-3800.95,0.00011506,2]
[35182,1714331474216,-531.05,0.00011506,2]
[35183,1714331474226,-500.0,0.00011506,2]
[35184,1714331474236,-1489.82,0.00011506,2]
[35185,1714331474246,-509.12,0.00011506,2]
[35186,1714331474255,-2169.37,0.00011506,2]
[35187,1714331474266,-500.0,0.00011506,2]
[35188,1714331474276,-500.0,0.00011506,2]
[35189,1714331474286,-2292.13,0.00011506,2]
[35190,1714331474295,-500.0,0.00011506,2]
[35191,1714331474305,-500.0,0.00011506,2]
[35192,1714331474314,-894.45,0.00011506,2]
[35193,1714331474323,-500.0,0.00011506,2]
[35195,1714331474346,-774.47,0.00011506,2]
[35197,1714331474365,-4212.02,0.00011506,2]
[35199,1714331474384,-973.0,0.00011506,2]
[35201,1714331474404,-500.0,0.00011506,2]
[35203,1714331474424,-500.0,0.00011506,2]
[35205,1714331474443,-672.42,0.00011506,2]
[35207,1714331474463,-5235.42,0.00011506,2]
[35209,1714331474483,-1242.59,0.00011506,2]
[35211,1714331474503,-500.0,0.00011506,2]
[35213,1714331474523,-500.0,0.00011506,2]
[35215,1714331474543,-500.0,0.00011506,2]
[35217,1714331474562,-860.55,0.00011506,2]
[35219,1714331474582,-500.0,0.00011506,2]
[35221,1714331474602,-500.0,0.00011506,2]
[35223,1714331474622,-500.0,0.00011506,2]
[35225,1714331474642,-1049.2,0.00011506,2]
[35227,1714331474665,-500.0,0.00011506,2]
[35229,1714331474685,-500.0,0.00011506,2]
[35231,1714331474705,-977.7,0.00011506,2]
[35233,1714331474725,-6674.97,0.00011506,2]
[35235,1714331474744,-524.08,0.00011506,2]
[35237,1714331474764,-505.30262263,0.00011506,2]
[35239,1714331474784,-761.59,0.00011506,2]
[35241,1714331474804,-500.0,0.00011506,2]
[35243,1714331474823,-500.0,0.00011506,2]
[35245,1714331474843,-500.0,0.00011506,2]
[35247,1714331474863,-951.73,0.00011506,2]
[35248,1714331474873,-500.0,0.00011506,2]
[35249,1714331474882,-500.0,0.00011506,2]
[35250,1714331474892,-500.0,0.00011506,2]
[35251,1714331474902,-1185.86,0.00011506,2]
[35252,1714331474912,-500.0,0.00011506,2]
[35253,1714331474922,-500.0,0.00011506,2]
[35254,1714331474932,-500.0,0.00011506,2]
[35255,1714331474943,-2988.7,0.00011506,2]
[35257,1714331474962,-1057.63,0.00011506,2]
[35259,1714331474982,-500.0,0.00011506,2]
[35261,1714331475001,-500.0,0.00011506,2]
[35263,1714331475022,-766.16,0.00011506,2]
[35265,1714331475042,-500.0,0.00011506,2]
[35267,1714331475062,-500.0,0.00011506,2]
[35269,1714331475081,-500.0,0.00011506,2]
[35271,1714331475101,-526.35,0.00011506,2]
[35273,1714331475121,-1174.3,0.00011506,2]
[35275,1714331475140,-500.0,0.00011506,2]
[35277,1714331475160,-500.0,0.00011506,2]
[35279,1714331475181,-500.0,0.00011506,2]
[35281,1714331475201,-500.0,0.00011506,2]
[35283,1714331475221,-500.0,0.00011506,2]
[35285,1714331475240,-250.05035587,0.00011506,2]
[35286,1714331475250,-618.93875623,0.00011506,2]
[35287,1714331475259,-566.88,0.00011506,2]
[35288,1714331475269,-500.0,0.00011506,2]
[35289,1714331475577,-2494.32,0.00011506,2]
[35291,1714331475597,-1962.38,0.00011506,2]
[35293,1714331475617,-3862.59,0.00011506,2]
[35295,1714331475636,-736.62,0.00011506,2]
[35297,1714331475656,-500.0,0.00011506,2]
[35299,1714331475676,-500.0,0.00011506,2]
[35301,1714331475696,-500.0,0.00011506,2]
[35303,1714331475715,-1288.39,0.00011506,2]
[35305,1714331475735,-2897.29,0.00011506,2]
[35307,1714331475755,-504.66399935,0.00011506,2]
[35309,1714331475777,-500.0,0.00011506,2]
[35310,1714331475786,-1370.1,0.00011506,2]
[35311,1714331475796,-500.0,0.00011506,2]
[35313,1714331475817,-640.18,0.00011506,2]
[35315,1714331475837,-530.13097919,0.00011506,2]
[35316,1714331475847,-20011.43,0.00011506,2]
[35317,1714331475856,-1204.37,0.00011506,2]
[35318,1714331475867,-500.0,0.00011506,2]
[35319,1714331475877,-500.0,0.00011506,2]
[35320,1714331475887,-500.0,0.00011506,2]
[35321,1714331475897,-1538.14,0.00011506,2]
[35322,1714331475907,-500.0,0.00011506,2]
[35323,1714331475916,-500.0,0.00011506,2]
[35324,1714331475926,-500.0,0.00011506,2]
[35325,1714331475936,-8592.95,0.00011506,2]
[35326,1714331475947,-5719.97,0.00011506,2]
[35327,1714331475956,-529.13,0.00011506,2]
[35328,1714331475966,-500.0,0.00011506,2]
[35329,1714331475976,-500.0,0.00011506,2]
[35331,1714331475996,-500.0,0.00011506,2]
[35333,1714331476016,-500.0,0.00011506,2]
[35334,1714331476027,-765.55,0.00011506,2]
[35335,1714331476037,-500.0,0.00011506,2]
[35336,1714331476047,-500.0,0.00011506,2]
[35337,1714331476057,-500.0,0.00011506,2]
[35338,1714331476068,-500.0,0.00011506,2]
[35339,1714331476078,-808.74,0.00011506,2]
[35340,1714331476089,-1086.25,0.00011506,2]
[35341,1714331476099,-500.0,0.00011506,2]
[35343,1714331476120,-500.0,0.00011506,2]
[35345,1714331476141,-500.0,0.00011506,2]
[35346,1714331476151,-500.0,0.00011506,2]
[35347,1714331476161,-500.0,0.00011506,2]
[35348,1714331476172,-500.0,0.00011506,2]
[35349,1714331476182,-500.0,0.00011506,2]
[35350,1714331476192,-260.0,0.0001155,2]
[35351,1714331476203,-167.89698282,0.00011669,2]
[35353,1714331476223,-280.0,0.00011686,2]
[35355,1714331476243,-500.0,0.0001178,2]
[35357,1714331476262,-500.0,0.0001178,2]
[35359,1714331476281,-510.25,0.0001178,2]
[35361,1714331476301,-625.22,0.0001178,2]
[35363,1714331476321,-500.0,0.0001178,2]
[35365,1714331476342,-500.0,0.0001178,2]
[35367,1714331476364,-500.0,0.0001178,2]
[35369,1714331476383,-500.0,0.0001178,2]
[35371,1714331476402,-500.0,0.0001178,2]
[35372,1714331476411,-500.0,0.0001178,2]
[35373,1714331476422,-500.0,0.0001178,2]
[35375,1714331476443,-500.0,0.0001178,2]
[35376,1714331476453,-500.0,0.0001178,2]
[35377,1714331476462,-500.0,0.0001178,2]
[35379,1714331476481,-500.0,0.0001178,2]
[35380,1714331476491,-500.0,0.0001178,2]
[35381,1714331476500,-500.0,0.0001178,2]
[35383,1714331476521,-500.0,0.0001178,2]
[35385,1714331476541,-607.32,0.0001178,2]
[35387,1714331476560,-500.0,0.0001178,2]
[35389,1714331476580,-500.0,0.0001178,2]
[35391,1714331476599,-500.0,0.0001178,2]
[35393,1714331476618,-500.0,0.0001178,2]
[35394,1714331476628,-500.0,0.0001178,2]
[35395,1714331476637,-500.0,0.0001178,2]
[35396,1714331476647,-500.0,0.0001178,2]
[35397,1714331476656,-500.0,0.0001178,2]
[35399,1714331476675,-500.0,0.0001178,2]
[35401,1714331476694,-500.0,0.0001178,2]
[35403,1714331476713,-500.0,0.0001178,2]
[35405,1714331476732,-500.0,0.0001178,2]
[35407,1714331476751,-500.0,0.0001178,2]
[35409,1714331476770,-500.0,0.0001178,2]
[35411,1714331476789,-500.0,0.0001178,2]
[35413,1714331476809,-500.0,0.0001178,2]
[35415,1714331476828,-744.02,0.0001178,2]
[35416,1714331476838,-500.0,0.0001178,2]
[35417,1714331476848,-500.0,0.0001178,2]
[35418,1714331476857,-500.0,0.0001178,2]
[35419,1714331476867,-500.0,0.0001178,2]
[35420,1714331476877,-500.0,0.0001178,2]
[35421,1714331476888,-500.0,0.0001178,2]
[35422,1714331476897,-500.0,0.0001178,2]
[35423,1714331476907,-556.86,0.0001178,2]
[35424,1714331476916,-500.0,0.0001178,2]
[35425,1714331476925,-500.0,0.0001178,2]
[35427,1714331476944,-500.0,0.0001178,2]
[35429,1714331476963,-500.0,0.0001178,2]
[35431,1714331476982,-500.0,0.0001178,2]
[35432,1714331476991,-500.0,0.0001178,2]
[35433,1714331477000,-500.0,0.0001178,2]
[35434,1714331477010,-500.0,0.0001178,2]
[35435,1714331477020,-500.0,0.0001178,2]
[35436,1714331477029,-500.0,0.0001178,2]
[35437,1714331477038,-503.88,0.0001178,2]
[35439,1714331477057,-500.0,0.0001178,2]
[35441,1714331477075,-500.0,0.0001178,2]
[35443,1714331477094,-619.54509289,0.0001178,2]
[35445,1714331477112,-610.03,0.0001178,2]
[35447,1714331477131,-500.0,0.0001178,2]
[35449,1714331477149,-500.0,0.0001178,2]
[35451,1714331477168,-500.0,0.0001178,2]
[35453,1714331477187,-500.0,0.0001178,2]
[35455,1714331477206,-588.27,0.0001178,2]
[35457,1714331477224,-500.0,0.0001178,2]
[35459,1714331477243,-500.0,0.0001178,2]
[35461,1714331477262,-500.0,0.0001178,2]
[35462,1714331477271,-500.0,0.0001178,2]
[35463,1714331477281,-500.0,0.0001178,2]
[35464,1714331477290,-500.0,0.0001178,2]
[35465,1714331477299,-500.0,0.0001178,2]
[35467,1714331477318,-500.0,0.0001178,2]
[35468,1714331477327,-500.0,0.0001178,2]
[35469,1714331477336,-500.0,0.0001178,2]
[35471,1714331477358,-500.0,0.0001178,2]
[35472,1714331477367,-500.0,0.0001178,2]
[35473,1714331477377,-584.81,0.0001178,2]
[35474,1714331477387,-500.0,0.0001178,2]
[35475,1714331477397,-546.92,0.0001178,2]
[35476,1714331477406,-500.0,0.0001178,2]
[35477,1714331477416,-500.0,0.0001178,2]
[35478,1714331477425,-500.0,0.0001178,2]
[35479,1714331477435,-638.09,0.0001178,2]
[35481,1714331477454,-500.0,0.0001178,2]
[35483,1714331477473,-500.0,0.0001178,2]
[35485,1714331477492,-500.0,0.0001178,2]
[35487,1714331477510,-500.0,0.0001178,2]
[35489,1714331477529,-500.0,0.0001178,2]
[35491,1714331477547,-649.78,0.0001178,2]
[35493,1714331477566,-500.0,0.0001178,2]
[35495,1714331477584,-500.0,0.0001178,2]
[35497,1714331477603,-550.86,0.0001178,2]
[35499,1714331477622,-500.0,0.0001178,2]
[35501,1714331477641,-500.0,0.0001178,2]
[35503,1714331477659,-652.17,0.0001178,2]
[35505,1714331477679,-666.44,0.0001178,2]
[35507,1714331477698,-500.0,0.0001178,2]
[35509,1714331477717,-500.0,0.0001178,2]
[35511,1714331477736,-566.45,0.0001178,2]
[35513,1714331477756,-738.79,0.0001178,2]
[35515,1714331477774,-500.0,0.0001178,2]
[35517,1714331477793,-500.0,0.0001178,2]
[35519,1714331477812,-583.37,0.0001178,2]
[35521,1714331477831,-500.0,0.0001178,2]
[35523,1714331477850,-500.0,0.0001178,2]
[35525,1714331477868,-500.0,0.0001178,2]
[35527,1714331477887,-500.0,0.0001178,2]
[35529,1714331477905,-500.0,0.0001178,2]
[35531,1714331477996,-500.0,0.0001178,2]
[35533,1714331478015,-500.0,0.0001178,2]
[35535,1714331478034,-500.0,0.0001178,2]
[35537,1714331478052,-500.0,0.0001178,2]
[35539,1714331478071,-500.0,0.0001178,2]
[35541,1714331478089,-500.0,0.0001178,2]
[35542,1714331478098,-500.0,0.0001178,2]
[35543,1714331478107,-500.0,0.0001178,2]
[35544,1714331478117,-500.0,0.0001178,2]
[35545,1714331478126,-1224.58,0.0001178,2]
[35547,1714331478144,-500.0,0.0001178,2]
[35549,1714331478163,-500.0,0.0001178,2]
[35551,1714331478181,-624.41,0.0001178,2]
[35553,1714331478199,-500.0,0.0001178,2]
[35555,1714331478217,-557.05,0.0001178,2]
[35557,1714331478235,-500.0,0.0001178,2]
[35559,1714331478254,-500.0,0.0001178,2]
[35561,1714331478273,-500.0,0.0001178,2]
[35563,1714331478291,-500.0,0.0001178,2]
[35565,1714331478309,-533.0,0.0001178,2]
[35566,1714331478318,-500.0,0.0001178,2]
[35567,1714331478327,-500.0,0.0001178,2]
[35569,1714331478347,-500.0,0.0001178,2]
[35570,1714331478357,-500.0,0.0001178,2]
[35571,1714331478366,-899.28,0.0001178,2]
[35573,1714331478382,-500.0,0.0001178,2]
[35574,1714331478391,-500.0,0.0001178,2]
[35575,1714331478400,-1142.31,0.0001178,2]
[35577,1714331478415,-500.0,0.0001178,2]
[35579,1714331478432,-606.2,0.0001178,2]
[35581,1714331478448,-500.0,0.0001178,2]
[35583,1714331478464,-500.0,0.0001178,2]
[35585,1714331478481,-500.0,0.0001178,2]
[35587,1714331478498,-500.0,0.0001178,2]
[35589,1714331478515,-629.85,0.0001178,2]
[35591,1714331478535,-500.0,0.0001178,2]
[35593,1714331478552,-507.09,0.0001178,2]
[35594,1714331478561,-500.0,0.0001178,2]
[35595,1714331478569,-891.97,0.0001178,2]
[35597,1714331478586,-1106.8,0.0001178,2]
[35599,1714331478604,-527.72,0.0001178,2]
[35601,1714331478622,-500.0,0.0001178,2]
[35603,1714331478639,-711.18,0.0001178,2]
[35605,1714331478656,-1397.03,0.0001178,2]
[35607,1714331478674,-500.0,0.0001178,2]
[35609,1714331478694,-1610.42,0.0001178,2]
[35611,1714331478713,-500.0,0.0001178,2]
[35613,1714331478732,-500.0,0.0001178,2]
[35615,1714331478751,-500.0,0.0001178,2]
[35616,1714331478760,-666.45,0.0001178,2]
[35617,1714331478770,-500.0,0.0001178,2]
[35619,1714331478789,-513.55,0.0001178,2]
[35621,1714331478807,-1577.52,0.0001178,2]